Workbook

Sheet Cover Sheet
B2: Project Information
B3: Workbook Name: | C3: IED Risk Register-Howdon
B4: Project Title: | C4: NWG IED Permits
B6: Section: | C6: Industrial Emission Directive Permit | E6: Divn/Dept: | I6: Please select from the dropdown or for enter manually
B7: Subject: | C7: Risk Assessment | E7: Project Nr: | F7: 100105164
B8: Project Manager: | E8: File Ref: | G8: 790101-MMD-IED-CA-C-004 | H8: 790101-MMD-IED-CA-C-004 | I8: Please use the format Project Number/PIMS Unique number (e.g. 123456/5) or project specific format
B9: Originator | C9: Nicola Robinson/Nikos Triantafyllou | E9: Calc Nr:
B10: Checker | C10: Alastair Massey | E10: Nr Sheets: | F10: 5 | I10: This is updated automatically as sheets are added/removed
B11: Template Version | C11: E
B12: Design Phase
B16: Computer Applications Used | G16: Version/Date | I16: Please enter any other programs used as part of the calculation
B17: Microsoft Excel | G17: 2108
B18: Infoworks ICM | G18: 11.0.4
B23: Scope of Checking
B24: Manual calculations | E24: Computer generated calculations
I25: Enter a description of the checks that are required/have been performed
B27: Sheets | C27: Calculations by | F27: Checked by
C28: Name | D28: Signature | E28: Date | F28: Name | G28: Signature | H28: Date | I28: Please keep an audit list of the authors and checkers of each calculation sheet
A29: 292574555 | B29: 1.Risk assessment | C29: =Originator -> Nicola Robinson/Nikos Triantafyllou | D29: NP | E29: 2022-07-25 | F29: Alastair Massey | G29: AM | H29: 2022-08-03
A30: 292575378 | B30: 2.Total vol. - Mitigation | C30: =Originator -> Nicola Robinson/Nikos Triantafyllou | D30: NP | E30: 2022-07-25 | F30: Alastair Massey | G30: AM | H30: 2022-08-03
A31: 292576031 | B31: 3.Containment volume-Total vol. | C31: =Originator -> Nicola Robinson/Nikos Triantafyllou | D31: NP | E31: 2022-07-25 | F31: Alastair Massey | G31: AM | H31: 2022-08-03
A32: 292576417 | B32: 4.Current asset evaluation | C32: =Originator -> Nicola Robinson/Nikos Triantafyllou | D32: NP | E32: 2022-07-25 | F32: Alastair Massey | G32: AM | H32: 2022-08-03
A33: 292576606 | B33: 5.Containment type-Total vol. | C33: Nikos Triantafyllou | D33: NT | E33: 2023-02-21 | F33: Rachael Cross | G33: RC | H33: 2023-02-21
B35: Approved by
B36: Approver | D36: Signature | G36: Date
B37: Anita Manns | D37: A. Manns | G37: 2023-02-21
B39: Version History
B40: Version | C40: Description | F40: Originator | G40: Checker | H40: Date
B41: P01 | C41: Initial Calculation | F41: =Originator -> Nicola Robinson/Nikos Triantafyllou | G41: =Checker -> Alastair Massey | H41: 2022-07-25 | J41: Latest Version | K41: P03
B42: P02 | C42: Updated with Client Comments | F42: =Originator -> Nicola Robinson/Nikos Triantafyllou | G42: =Checker -> Alastair Massey | H42: 2022-07-25
B43: P03 | C43: Updated for resubmission of permit application | F43: =Originator -> Nicola Robinson/Nikos Triantafyllou | G43: Alastair Massey and Rachael Crss | H43: 2023-02-21 | J43: Last Checked | K43: 2023-02-21

Sheet Introduction & Conclusion
B3: Introduction
B4: The application for a variation to the IED permit requires an assessment of the existing capacity available for accidental spills from the anaerobic digestion activity and biogas upgrading activity, and to identify potential high level tertiary containment mitigation that could be implemented in order for the sites to comply, as far as is reasonably practicable, with Best Available Technique (BAT), in terms of the requirement for the provision of tertiary containment | C4: Please introduce what this spreadsheet is
B6: Purpose
B7: The aim of the study is to support the application to vary the existing sewage sludge treatment activity (S0819 No 19) as authorised under the permit reference EPR/KP3394ZE to include the anaerobic digestion activity and biogas upgrading activity, and to consolidate the bespoke combustion activity under permit referenceEPR/YP3331HQ to the same Installation permit for the Howdon STW and STC (‘the Site’) onbehalf of Northumbrian Water Limited (‘Northumbrian Water’ or ‘the Operator’). | C7: Please enter the purpose of the spreadsheet
B9: Required Output
B10: A high-level desktop-based risk assessment using the ABDA classification tool to calculate the sites overall risk rating based on a Source-Pathway-Receptor Analysis. Simulation of catastrophic failure of the largest above ground volume during a 1 in 10 year rainfall event | C10: Please define what the outputs of the spreadsheet should be
B12: Conclusions
B13: A site containment option is proposed with 2.6m high walls and a flood gate protecting the River Tyne. Mobile pumps to be used to remove volume from bund from low point. An improved maintenance and inspection regime is proposed to include daily operational inspection (See '2.Total vol. - Mitigation') | C13: If the spreadsheet/calculation has a conclusion please enter it here
B15: Assumptions
B16: CIRIA 736 Proposal amended 201221, Clause 3.2 study, Points (7-18), Page 7. 1.The failure risk is assessed for a Single tank 2.Only the above ground volume is considered for failure | C16: Please ensure all assumptions are stated Please specify any assumptions that apply to the whole spreadsheet Assumptions on single sheets should be placed on the sheet Assumptions on a cell or range should be put next to the cell or in a comment on top of it
B18: Basic Design Information or Source and Reference
B19: CIRIA report C736
B22: Identify documents/technical records where output will be used

Sheet 1.Risk assessment
A2: 1.1 | B2: Source
B3: Please note, this includes all sludge tanks on the Howden site. For all other processes under the IED permit (e.g. gas bag holders) please see 100105164_MSD_HOW All wastewater treatment and biogas combustion treatment tanks have not been included in this assessment as these do not fall under the IED permit
B4: Material | C4: Physical properties | D4: Maximum quantity, m3 | E4: units | F4: Storage | G4: Flammability | H4: Corrosive | I4: Ecotoxicity (based on LD and quantity) | J4: Hazard rating
B5: Thickened sludge day tanks | C5: Sludge | D5: 2000 | E5: 2 | F5: Tank | G5: Low | H5: Low | I5: Medium | J5: L | L5: =D5*E5 -> 4000
B6: Strategic Sludge Storage Tanks | C6: Sludge | D6: 10500 | E6: 4 | F6: Tank | G6: Low | H6: Low | I6: Medium | J6: L | L6: =D6*E6 -> 42000
B7: Screened Sludge Buffer Tank | C7: Sludge | D7: 600 | E7: 1 | F7: Tank | G7: Low | H7: Low | I7: Medium | J7: L | L7: 600
B8: Advanced Anaerobic Digesters | C8: Liquid with sludge, Gas (methane) | D8: 6000 | E8: 3 | F8: Tank | G8: Medium | H8: Low | I8: High | J8: M | L8: 18000
B9: Post Digestion Storage Tank | C9: Sludge | D9: 4600 | E9: 1 | F9: Tank | G9: Low | H9: Low | I9: Medium | J9: L | L9: 4600
B10: THP Buffer Tanks (feed silos) | C10: Liquid with sludge dry solids | D10: 320 | E10: 2 | F10: Silo | G10: Medium | H10: Low | I10: Medium | J10: L | L10: 640
B11: Cake Silo | C11: Semi-Solid Cakes | D11: 500 | E11: 1 | F11: Silo | G11: Medium | H11: Low | I11: Medium | J11: L
I12: Overall | J12: M
A14: 1.2 | B14: Pathway and Receptor
B47: Figure 1.1 Site Layout | G47: Figure 1.2 Strategic Sludge Storing Tanks
B55: Pathway - the route from primary containment to receptor (extent of loss of containment) | D55: Time of concentration/ duration of source outside containment | F55: Hazard - Transport potential | I55: Receptor | J55: Hazard - Damage potential
B56: Tanks are surrounded by concrete. The superficial deposits underlying the site are classified as a combination of Unproductive Strata, Secondary Undifferentiated aquifers and unknown (lakes and landslip), indicating that they are not of significant value. The bedrock (PMCM) consists of siltstone, mudstones and sandstones of varying permeability. The PMCM formation is classed as a Secondary A superficial aquifer with low vulnerability. Permeable sub-soils/strata will thus act as a pathway. But the majority of the tank surroundings are impermeable. | D56: Direct contamination but over an extended period of time | F56: M | I56: The site is located on the northern banks of the River Tyne, approximately 75m inland. The remaining part of the historical Northumberland Dock lies approximately 50m to the east. [As per Site Condition Report 100105164_MSD_SCR_HOW, Hydrology, Page 3] | J56: H
B57: If the permeable area were to get saturated (high groundwater) or became blocked with sludge, areas will act as impermeable and transport sludge downstream. | D57: Direct contamination but over an extended period of time | F57: L
B58: The site is located in an Environment Agency zone 1 flood risk area. However, the area approximately 50m to the east and 80m to the south of the site is located with a zone 3 flooding risk area due to the proximity of the River Tyne. | D58: The site is not at risk from coastal flooding (it is at risk of river flooding, Environment Agency flood risk High=5) | F58: L | I58: There are no boreholes used for drinking water supply within 1km of the site. However, there are two abstraction points one located approximately 400m south of the site used for mineral washing and the second approximately 1km west of the Installation which is used for industrial water used for dust suppression. [As per Site Condition Report 100105164_MSD_SCR_HOW, Hydrology, Page 3] | J58: L
B59: Existing underground services - ductwork, tunnels etc. (locations not known) | D59: Direct contamination but over an extended period of time | F59: L
B60: Existing underground sludge pipework | D60: Direct contamination but over an extended period of time | F60: M
B61: There is impermeable road surfacing around the tanks. Ground naturally drains to this area If inventory is lost or cascaded onto the road (saturated permeable ground), sludge will be transported through the drainage channel to the head of the wastewater treatment works | D61: Minutes - hours | F61: L
B62: If the drainage channel were to get blocked, it may overflow locally to the permeable surrounding area. | D62: Minutes - hours | F62: M | I62: The bedrock (PMCM)consists of siltstone, mudstones and sandstones of varying permeability. ThePMCM formation is classed as a Secondary A superficial aquifer with low vulnerability. [As per Site Condition Report 100105164_MSD_SCR_HOW, Hydrogeology, Page3] | J62: L
B63: Site wastewater treatment capacity exceeded due to incoming flows –risks direct discharges to the watercourses if stormwater storage is exceeded. There is no history of surface flooding at the site. [As per Climate Change Risk Assessment, 100105164_ERA_CCRA_HOW, Page 8] | D63: Minutes - N/A (dependant on flooding extent) | F63: L
D64: Overall | F64: M | I64: Overall | J64: L
B67: *Flooding in flood zone 3 only have a 1 in 100 year probability of happening in a year
B70: Combination of Hazards | C70: =J12&F64&J64 -> MML
B73: Overall risk rating for zone (Ciria 736) | C73: M
A77: 1.3 | B77: Frequency of loss of containment
B80: Failure mode | C80: Description | D80: Existing consequence and mitigation measure | K80: Annual probability of loss of containment | L80: Rating
B81: Operational failure - tank (partial) | C81: Overfilling/overflow of tank | D81: Strategic tanks are covered so it is not anticipated that overfilling/overflow of tanks will occur. | K81: 1 in 100 to 1 in 1 Million | L81: L
B82: Structural failure - tank (catastrophic) | C82: Catastrophic failure due to significant external damage Potential to lose total volume if pipework fails/break off of tank | D82: Tanks are primarily located above ground with a proportion below ground. For any loss of containment below ground, the sludge liquid will percolate into the permeable soil at a slow rate over a long period. In the case of significant damage above ground, the total volume contained above ground could be lost. It is however very unlikely for the tanks to fail catastrophically structurally as the tanks are fit for purpose. Total loss of containment could occur in case of pipe failure above the ground level - If total loss of containment occurs, sludge would flow freely. If pipework fails, jetting likely to occur. This sludge would be able to flow in all directions as there is no containment immediately around the tank. The sludge would predominantly flow to the south towards the Tyne river. There are bunds on the southern and eastern boundaries of the site which would limit the flow and inhibit any sludge from escaping the site and into the nearby watercourse. Yet these bunds do not contain the sludge completely as the estimated volume is exceeds 10.000 m3. | K82: < 1 in 1 Million | L82: L
B83: Structural failure - tank (partial) | C83: Most likely through cracks formed in concrete Most critical cracks would be large cracks at low level along the side of the tank walls or tank base. Cracks would need to be large >6mm to allow for sludge to pass through the crack freely. General screens at WwTW are 6-10mm, thus cracks would need to be in the same range to allow for sludge to pass freely. Roof failure | D83: Tanks are primarily located above ground. Any significant loss of containment, would spill above ground. Structural failure of the tank would mainly be through cracks. In the case of significant cracks forming above ground, the volume contained above ground would seep through the cracks . If the cracks are significant (>6mm), the tank could potentially lose the above ground volume over a long period of time (very unlikely). Due to operational presence on site, large drops in levels in the tanks and significant leaks above ground would be noticed. Significant cracks (>6mm) below/above ground would also be easily spotted if tank is inspected. Proportion of volume could be lost, but from discussions with operations, no loss of containment was experienced. Total loss of containment is unlikely (partial loss of containment would be more likely to occur) | K83: 1 in 100 to 1 in 1 Million | L83: M
B84: Structural failure - pipework (catastrophic) | C84: Loss of containment due to failure of above ground connecting pipework | D84: In the unlikely event where the above ground pipework fails and breaks off, a significant volume could be lost if the necessary pump controls are not in place or the valves are not closed by operational staff to limit loss of containment. If an incident occurred during manned hours, the pipes would be shut down immediately and valves closed by operational staff if the pipes were to fail. In the case where critical pipework fails and valves cannot mitigate the spillage, the digester could lose its full volume. Total loss of containment could occur. - If total loss of containment occurs sludge will flow freely, it is able to flow in all directions as there is no containment immediately around the tank.he sludge would predominantly flow to the south towards the Tyne river. There are bunds on the southern and eastern boundaries of the site which would limit the flow and inhibit any sludge from escaping the site and into the nearby watercourse. Yet these bunds are quite insignificant in height and do not contain the sludge completely as the estimated volume is exceeds 10.000 m3. The sludge will mainly flow to the south leading down to river Tyne located directly below the tank towards an outfall in the river, which has a penstock attached however it is not in full use so the outfall would allow sludge off site. | K84: < 1 in 1 Million | L84: L
B85: Structural failure - pipework (partial) | C85: Loss of containment most likely to occur where there are weak points in the pipework - Most likely through failures where pipe connects with the structure, bolts/sealant at pipe flanges/valves or along any pipe pitting. Weak point could be created through either human damage (during maintenance/operation), erosion (high velocities and silt content within the pipe) or environmental (corrosion) Valve failure/seizure | D85: It is assumed that the majority of pipework and connections are located above ground. If loss of containment occurs underground (through leaks, joints and seals), sludge will percolate into the soil at a slow rate over a long period. If significant leaks, localised wet areas will be present above ground and jetting is likely to occur. If loss of containment occurs above ground through leaks or damage to pipework, due to the permeable ground around tank, sludge will also percolate into the soil at a slow rate over a long period. Due to operational presence on site, significant leaks (above or below) ground would be noticed and loss of containment would be mitigated through operational measures (closing of valves). The site is manned and valves present on all pipework from all tanks would be able to be closed, minimising the risk of significant jetting. Total loss of containment is unlikely (partial loss of containment would be more likely to occur) | K85: 1 in 100 to 1 in 1 Million | L85: M
B86: Vehicular impact (partial to catastrophic) | C86: Impact from vehicles - damage to pipes or tank causing loss of containment | D86: No known vehicle impacts - some vehicle barriers/protection can be seen on site photos. Vehicles could potentially impact and damage concrete digestion tank which is located above ground. Vehicular impact could cause some damage to the tank (cracking), if significant, proportion of above ground volume could be lost. Vehicle is however unlikely to damage underground sections of tanks or displace any liquid within them. Total loss of containment could occur if the vehicle impact causes significant damage to the tank. High speed impact unlikely, but vehicle could damage pipework connected to tank (mixer pump) and cause a significant hole in the tank at low level. Could impact a potential weak point. | K86: 1 in 100 to 1 in 1 Million | L86: M
B87: Vandalism | C87: Vandalism of infrastructure - damage to pipes or tank causing loss of containment | D87: No known vandalism to tanks or pipework - CCTV cameras on site. Site is enclosed by steel fencing all around. If vandalism damage were to occur, total loss of containment is unlikely, but could occur if significant damage or on theft of mixer pumps and pipework. Partial loss of containment would be more likely to occur if slight damage was done. | K87: < 1 in 1 Million | L87: L
B88: Flooding | C88: River flooding - Flood zone 1- damage to pipes or tank causing loss of containment | D88: The site is located in an Environment Agency zone 1 flood risk area. Areas withinzone 1 have 1 in a 1,000 chance of river or sea related flooding. However, the area approximately 50m to the east and 80m to the south of the site is located within a zone 3 flooding risk area due to the proximity of the River Tyne. Areas within flood zone 3 have been shown to be at a 1% or greater probability offlooding from rivers or 0.5% or greater probability of flooding from rivers/ the sea. [As per Site Condition Report 100105164_MSD_SCR_HOW, Flooding, Page 3] | K88: < 1 in 1 Million | L88: M
B90: *Site is manned. Probability and frequency thus reduced
B93: Frequency of loss of containment (Ciria 736) | C93: M
A96: 1.4 | B96: Overall zone hazard rating
B98: Overall zone hazard rating (Ciria 736) | C98: HIGH
A101: 1.5 | B101: Containment required
B104: Containment required | C104: Class 3

Sheet 2.Total vol. - Mitigation
A3: 2.1 | B3: Catastrophic failure - modes (loss of containment)
B5: Risk | C5: Cause | D5: Existing consequence and mitigation measure | K5: Existing zone risk rating | L5: Proposed Mitigation | V5: Risk rating after mitigation
C6: Operational failure - tank (partial) | D6: ='1.Risk assessment'!$D$81 -> Strategic tanks are covered so it is not anticipated that overfilling/overflow of tanks will occur. | K6: ='1.Risk assessment'!L81 -> L | L6: All tanks undergo a delegated inspection regime and the process parameters are monitored and understood by site operatives. Daily site inspection regime will consist of the a site walkover. Any defects located will be escalated to site manager for a repair resolution to be determined. If there is not an immediate risk posed by the defective asset and large scale repair is required then, the asset planning team will be informed in order to plan the necessary repairs. Any reactive works required will be undertaken by Site Operations team. Inspection/Frequency >Walk round the site, identify and clear up any waste materials: Daily >Note signs of any deterioration of tanks or surroundings: Daily >Note any small leaks or spills, fix them and clean them up immediately: Daily >Integrity/Condition assessment all key sludge assets - Drain tank and inspect condition: 10 yearly Further mitigation >A proactive planned preventative maintenance (PPM) and replacement programme linked to asset lifespan. Site Manager ensures the PPM is implemented effectively to minimise the probability of equipment malfunction. >A robust leak detection and repair plan will be set out and enacted >The site will be monitored using a telemetry to monitor tank levels and process flows. Trigger levels will be assigned to risk rating and proportional response will be taken. Alarms that protect against a loss of containment will have a response time the same as for other emergencies (Approx. 1 hr). >Penstock valves will be placed at strategic SW chambers to reduce the risk of sludge flows getting in to the SW drainage system. An automated solution for closing them and also any need for regrading of surfaces to reduce risk will be looked into at detailed design. Control of substances hazardous to health (COSHH) assessment undertaken for all raw materials. | V6: L
C7: Structural failure - tank (catastrophic) | D7: ='1.Risk assessment'!$D$82 -> Tanks are primarily located above ground with a proportion below ground. For any loss of containment below ground, the sludge liquid will percolate into the permeable soil at a slow rate over a long period. In the case of significant damage above ground, the total volume contained above ground could be lost. It is however very unlikely for the tanks to fail catastrophically structurally as the tanks are fit for purpose. Total loss of containment could occur in case of pipe failure above the ground level - If total loss of containment occurs, sludge would flow freely. If pipework fails, jetting likely to occur. This sludge would be able to flow in all directions as there is no containment immediately around the tank. The sludge would predominantly flow to the south towards the Tyne river. There are bunds on the southern and eastern boundaries of the site which would limit the flow and inhibit any sludge from escaping the site and into the nearby watercourse. Yet these bunds do not contain the sludge completely as the estimated volume is exceeds 10.000 m3. | K7: ='1.Risk assessment'!L82 -> L | L7: The above inspection and further mitigation proposals will be applicable to structural failure, also. Both clean and contaminated surface water is directed to a pumping station which recirculates it back into the system. The stormwater drainage of potentially contaminated areas from within the Site boundary is routed into the head of the works with no discharge outside of the site boundary. Regular daily inspections of the site drainage systems and other equipment are to be undertaken, with any repairs and maintenance carried out if necessary. All complaints and other incidents are recorded in the site diary including actions taken. The condensate is clean, uncontaminated water and is small in quantity. Condensate traps are checked regularly and condensate is discharged to the head of the works. | V7: L
C8: Structural failure - tank (partial) | D8: ='1.Risk assessment'!$D$83 -> Tanks are primarily located above ground. Any significant loss of containment, would spill above ground. Structural failure of the tank would mainly be through cracks. In the case of significant cracks forming above ground, the volume contained above ground would seep through the cracks . If the cracks are significant (>6mm), the tank could potentially lose the above ground volume over a long period of time (very unlikely). Due to operational presence on site, large drops in levels in the tanks and significant leaks above ground would be noticed. Significant cracks (>6mm) below/above ground would also be easily spotted if tank is inspected. Proportion of volume could be lost, but from discussions with operations, no loss of containment was experienced. Total loss of containment is unlikely (partial loss of containment would be more likely to occur) | K8: ='1.Risk assessment'!L83 -> M | L8: Original tank construction was reinforced concrete. In the event that tank loses containment above or below ground through structural failure (cracks), sludge would weep through the cracks at a very slow rate. The volume would slowly flow down the side of the tank and gather around the tank. Very large cracks and the subsequent leaks (especially above ground) would be spotted by operations during their daily inspections and the tank would be isolated and drained down until repaired if the crack is significant. To minimise loss of containment underground, it is advised that the tanks be structurally inspected on daily basis. Falling head tests should also be carried out to limit any potential leaks underground on weekly basis. Tank to be refurbished if necessary. Ultrasonic meters are suggested in Digestion tank which should alarm when pumps (feed pumps) are not in operation, but the level in the tank drops a certain distance to ensure any significant loss of containment underground is monitored. In the unlikely event that tank loses significant containment above ground through structural failure (large cracks), based on topography, sludge will cascade towards the road to the north/west and eventually into the drainage system. Potential to infiltrate into the ground around tank (grass) or cascade into the drainage network (liquor return) is minimal. Permeable areas around the tanks (stone and grass) and low lying grassed area are also to be replaced with impermeable hardstanding to remove the pathway to the ground. Soakaways to be filled in (concrete) and all connected drainage to connect to liquor return. | V8: L
C9: Structural failure - pipework (catastrophic) | D9: ='1.Risk assessment'!$D$84 -> In the unlikely event where the above ground pipework fails and breaks off, a significant volume could be lost if the necessary pump controls are not in place or the valves are not closed by operational staff to limit loss of containment. If an incident occurred during manned hours, the pipes would be shut down immediately and valves closed by operational staff if the pipes were to fail. In the case where critical pipework fails and valves cannot mitigate the spillage, the digester could lose its full volume. Total loss of containment could occur. - If total loss of containment occurs sludge will flow freely, it is able to flow in all directions as there is no containment immediately around the tank.he sludge would predominantly flow to the south towards the Tyne river. There are bunds on the southern and eastern boundaries of the site which would limit the flow and inhibit any sludge from escaping the site and into the nearby watercourse. Yet these bunds are quite insignificant in height and do not contain the sludge completely as the estimated volume is exceeds 10.000 m3. The sludge will mainly flow to the south leading down to river Tyne located directly below the tank towards an outfall in the river, which has a penstock attached however it is not in full use so the outfall would allow sludge off site. | K9: ='1.Risk assessment'!L84 -> L | L9: If catastrophic failure of the above ground pipework occurs (i.e. rising main pipe failure), assuming the pumps have the necessary pressure controls (Low and high pressure switches to trip the pump), the volume contained in the pipe length should be contained within pipe and valve chamber. To mitigate the very unlikely occurrence where the above ground pipework could fail/collapse, the necessary pump controls (Low and high pressure switches to trip the pump) need to be put in place, if not already, if there is a sudden loss of pressure in the rising mains (feed, mixing, hot water pumps rising mains), the pumps should stop. All above ground pipework and chambers to be inspected structurally on a daily basis for any leaks and necessary falling head tests conducted on weekly basis. Pipework and chambers to be refurbished or replaced, if necessary to BAT standards. In the unlikely event that tank loses significant containment above ground through structural failure (large cracks), based on topography, sludge will cascade towards the road to the north/west and eventually into the drainage system. Potential to infiltrate into the ground around tank (grass) or cascade into the drainage network (liquor return) is minimal. Permeable areas around the tank (stone and grass) and low lying grassed areas is also to be replaced with impermeable hardstanding to remove the pathway to the ground. Soakaways to be filled in (concrete) and all connected drainage to connect to liquor return. | V9: L
C10: Structural failure - pipework (partial) | D10: ='1.Risk assessment'!$D$85 -> It is assumed that the majority of pipework and connections are located above ground. If loss of containment occurs underground (through leaks, joints and seals), sludge will percolate into the soil at a slow rate over a long period. If significant leaks, localised wet areas will be present above ground and jetting is likely to occur. If loss of containment occurs above ground through leaks or damage to pipework, due to the permeable ground around tank, sludge will also percolate into the soil at a slow rate over a long period. Due to operational presence on site, significant leaks (above or below) ground would be noticed and loss of containment would be mitigated through operational measures (closing of valves). The site is manned and valves present on all pipework from all tanks would be able to be closed, minimising the risk of significant jetting. Total loss of containment is unlikely (partial loss of containment would be more likely to occur) | K10: ='1.Risk assessment'!L85 -> M | L10: No known visible leaks in the tank area. As construction was fit for purpose at the time of construction, secondary containment provision is not considered for the underground pipework. To assess the condition of underground pipework and chambers, CCTV and the necessary leakage detection (falling head tests) should be done on weekly basis to check if any leakage is experienced. All above ground pipework and chambers to be inspected structurally on daily basis for any leaks and necessary falling head tests conducted on weekly basis. Pipework and chambers to be refurbished or replaced, if necessary to BAT standards. In the unlikely event that tank loses significant containment above ground through structural failure (large cracks), based on topography, sludge will cascade towards the road to the north/west and eventually into the drainage system. Potential to infiltrate into the ground around tank (grass) or cascade into the drainage network (liquor return) is minimal. Permeable areas around the tanks (stone and grass) and low lying grassed areas is also to be replaced with impermeable hardstanding to remove the pathway to the ground. Soakaways to be filled in (concrete) and all connected drainage to connect to liquor return. | V10: L
C11: Vehicular impact (partial to catastrophic) | D11: ='1.Risk assessment'!$D$86 -> No known vehicle impacts - some vehicle barriers/protection can be seen on site photos. Vehicles could potentially impact and damage concrete digestion tank which is located above ground. Vehicular impact could cause some damage to the tank (cracking), if significant, proportion of above ground volume could be lost. Vehicle is however unlikely to damage underground sections of tanks or displace any liquid within them. Total loss of containment could occur if the vehicle impact causes significant damage to the tank. High speed impact unlikely, but vehicle could damage pipework connected to tank (mixer pump) and cause a significant hole in the tank at low level. Could impact a potential weak point. | K11: ='1.Risk assessment'!L86 -> M | L11: Vehicle barriers or bollards are proposed around front of the tanks along the road. Potential for the fence installed to be stronger and to be able to withstand some vehicular impact. The likelihood of such occurrence in low. This is to mitigate any potential impacts from vehicles and potential damage which could lead to loss of containment. Since, The tank base is at road level there are chances of a vehicular collisions. Permeable areas around the tanks (stone and grass) and low lying grassed areas is also to be replaced with impermeable hardstanding to remove the pathway to the ground. Soakaways to be filled in (concrete) and all connected drainage to connect to liquor return. | V11: L
C12: Vandalism | D12: ='1.Risk assessment'!$D$87 -> No known vandalism to tanks or pipework - CCTV cameras on site. Site is enclosed by steel fencing all around. If vandalism damage were to occur, total loss of containment is unlikely, but could occur if significant damage or on theft of mixer pumps and pipework. Partial loss of containment would be more likely to occur if slight damage was done. | K12: ='1.Risk assessment'!L87 -> L | L12: Access to Site and waste is restricted by a chain link security fence. The Site also benefits from a CCTV systems. Regular inspections of the boundary fencing and buildings are undertaken to ensure that these have not been compromised and continue to prevent easy access to Site. | V12: L
C13: Flooding | D13: ='1.Risk assessment'!$D$88 -> The site is located in an Environment Agency zone 1 flood risk area. Areas withinzone 1 have 1 in a 1,000 chance of river or sea related flooding. However, the area approximately 50m to the east and 80m to the south of the site is located within a zone 3 flooding risk area due to the proximity of the River Tyne. Areas within flood zone 3 have been shown to be at a 1% or greater probability offlooding from rivers or 0.5% or greater probability of flooding from rivers/ the sea. [As per Site Condition Report 100105164_MSD_SCR_HOW, Flooding, Page 3] | K13: ='1.Risk assessment'!L88 -> M | L13: Ensure flood plan for site follows EA guidance. Include provision of sump pump to keep site clear of floodwater. Ensure diesel generators are at sufficient height to ensure they are not at risk of flooding (coastal or otherwise) | V13: L
B16: Implementing the above measures will significantly reduce the probability and risk of failure from the concrete tanks and significantly reduce the amount of secondary containment. As per CIRIA 736, the above will need to be implemented in conjunction with a good maintenance strategy as mentioned in Box 5.2,Page 60.

Sheet 3.Containment volume-Total vol. (hidden)
A3: 3.1 | B3: Secondary containment volume requirement - Inventory volume (above ground)
B5: Strategic sludge storage tank 2 | C5: 10500 | D5: m3 | E5: (Inventory volume - above ground below overflow)
B7: Total volume | C7: =C5 -> 10500 | D7: m3
B10: 110% rule (CIRIA 736)
B12: *110% of largest tank | C12: =110%*C5 -> 11550 | D12: m3
B14: Secondary storage to be provided | C14: =C12 -> 11550 | D14: m3
B17: *Note that 10% includes for rainfall and is the minimum allowable storage that can be provided
A19: 3.2 | B19: Loss of containment - Time to empty fully
B21: Quick estimation of rate of loss of containment. Modelling will, however, simulate an instantaneous failure of the full volume
B23: Rate of flow from tank:
B25: Tank volume | E25: =C5 -> 10500 | F25: m3
B28: Diameter of pipe (d) | E28: 0.3 | F28: m
B29: Area | E29: =PI()*(E28/2)^2 -> 0.07068583471 | F29: m2
B30: Discharge coefficient (Cd) | E30: 0.61
B31: Gravitational acceleration (g) | E31: 9.81 | F31: m/s2
B34: Height within tank (H),m | C34: Flow rate (Q) m3/s | D34: Diameter of Tank(m) | E34: Volume in tank (m3) - above ground | F34: % volume lost | G34: Time to drop in level (min) | H34: Time to empty (cumulative) - min
B35: 14.85 | C35: =$E$30*$E$29*(SQRT(2*$E$31*B35)) -> 0.7359951529 | D35: 30 | E35: =PI()*((D35/2)^2)*B35 -> 10496.84645 | F35: =($E$25-E35)/$E$25 -> 0.0003003377327 | H35: =G35 -> 0
B36: 14.5 | C36: =$E$30*$E$29*(SQRT(2*$E$31*B36)) -> 0.7272700925 | D36: 30 | E36: =PI()*((D36/2)^2)*B36 -> 10249.44603 | F36: =($E$25-E36)/$E$25 -> 0.02386228263 | G36: =(E35-E36)/(MAX(C35:C36))/60 -> 5.602401513 | H36: =H35+G36 -> 5.602401513
B37: 14 | C37: =$E$30*$E$29*(SQRT(2*$E$31*B37)) -> 0.714620952 | D37: 30 | E37: =PI()*((D37/2)^2)*B37 -> 9896.016859 | F37: =($E$25-E37)/$E$25 -> 0.05752220392 | G37: =(E36-E37)/(MAX(C36:C37))/60 -> 8.099447903 | H37: =H36+G37 -> 13.70184942
B38: 13.5 | C38: 0.7017438441 | D38: 30 | E38: 9542.587685 | F38: 0.09118212521 | G38: 8.242812093 | H38: =H37+G38 -> 21.94466151
B39: 13 | C39: 0.6886259801 | D39: 30 | E39: 9189.158512 | F39: 0.1248420465 | G39: 8.394068968 | H39: 30.33873048
B40: 12.5 | C40: 0.6752533289 | D40: 30 | E40: 8835.729338 | F40: 0.1585019678 | G40: 8.553970364 | H40: 38.89270084
B41: 12 | C41: 0.6616104411 | D41: 30 | E41: 8482.300165 | F41: 0.1921618891 | G41: 8.723372361 | H41: 47.6160732
B42: 11.5 | C42: 0.6476802401 | D42: 30 | E42: 8128.870991 | F42: 0.2258218104 | G42: 8.903254633 | H42: 56.51932783
B43: 11 | C43: 0.6334437711 | D43: 30 | E43: 7775.441818 | F43: 0.2594817317 | G43: 9.094744382 | H43: 65.61407222
B44: 10.5 | C44: 0.6188798985 | D44: 30 | E44: 7422.012644 | F44: 0.2931416529 | G44: 9.299146182 | H44: 74.9132184
B45: 10 | C45: 0.6039649381 | D45: 30 | E45: 7068.583471 | F45: 0.3268015742 | G45: 9.517979562 | H45: 84.43119796
B46: 9.5 | C46: 0.5886722044 | D46: 30 | E46: 6715.154297 | F46: 0.3604614955 | G46: 9.753026796 | H46: 94.18422476
B47: 9 | C47: 0.5729714494 | D47: 30 | E47: 6361.725124 | F47: 0.3941214168 | G47: 10.00639436 | H47: 104.1906191
B48: 8.5 | C48: 0.5568281598 | D48: 30 | E48: 6008.29595 | F48: 0.4277813381 | G48: 10.28059292 | H48: 114.471212
B49: 8 | C49: 0.5402026631 | D49: 30 | E49: 5654.866776 | F49: 0.4614412594 | G49: 10.57864284 | H49: 125.0498549
B50: 7.5 | C50: 0.5230489794 | D50: 30 | E50: 5301.437603 | F50: 0.4951011807 | G50: 10.90421545 | H50: 135.9540703
B51: 7 | C51: 0.5053133212 | D51: 30 | E51: 4948.008429 | F51: 0.528761102 | G51: 11.26182529 | H51: 147.2158956
B52: 6.5 | C52: 0.4869321002 | D52: 30 | E52: 4594.579256 | F52: 0.5624210232 | G52: 11.65709665 | H52: 158.8729923
B53: 6 | C53: 0.4678292294 | D53: 30 | E53: 4241.150082 | F53: 0.5960809445 | G53: 12.0971409 | H53: 170.9701332
B54: 5.5 | C54: 0.447912386 | D54: 30 | E54: 3887.720909 | F54: 0.6297408658 | G54: 12.59110345 | H54: 183.5612366
B55: 5 | C55: 0.4270677034 | D55: 30 | E55: 3534.291735 | F55: 0.6634007871 | G55: 13.15097865 | H55: 196.7122153
B56: 4.5 | C56: 0.4051519973 | D56: 30 | E56: =PI()*((D56/2)^2)*B56 -> 3180.862562 | F56: 0.6970607084 | G56: =(E55-E56)/(MAX(C55:C56))/60 -> 13.79286277 | H56: =H55+G56 -> 210.505078
B57: 4 | C57: 0.3819809663 | D57: 30 | E57: 2827.433388 | F57: 0.7307206297 | G57: 14.53895393 | H57: 225.044032
B58: 3.5 | C58: 0.357310476 | D58: 30 | E58: 2474.004215 | F58: 0.764380551 | G58: 15.42088938 | H58: 240.4649214
B59: 3 | C59: 0.3308052206 | D59: 30 | E59: 2120.575041 | F59: 0.7980404723 | G59: 16.48562419 | H59: 256.9505455
B60: 2.5 | C60: 0.3019824691 | D60: 30 | E60: 1767.145868 | F60: 0.8317003936 | G60: 17.80650927 | H60: 274.7570548
B61: 2 | C61: 0.2701013315 | D61: 30 | E61: 1413.716694 | F61: 0.8653603148 | G61: 19.50605359 | H61: 294.2631084
B62: 1.5 | C62: 0.2339146147 | D62: 30 | E62: 1060.287521 | F62: 0.8990202361 | G62: 21.8084309 | H62: 316.0715393
B63: 1 | C63: 0.1909904831 | D63: 30 | E63: 706.8583471 | F63: 0.9326801574 | G63: 25.1822069 | H63: 341.2537462
B64: 0.5 | C64: 0.1350506658 | D64: 30 | E64: 353.4291735 | F64: 0.9663400787 | G64: 30.84177876 | H64: 372.095525
B65: 0 | C65: 0 | D65: 30 | E65: 0 | F65: 1 | G65: 43.6168618 | H65: 415.7123868 | I65: Minutes to empty to ground level

Sheet 4.Current asset evaluation
A3: 4.1 | B3: Current Asset Evaluation | C3: Strategic Sludge Storage Tank 2
B4: Description | C4: Sludge from the primary and secondary settlement tanks is treated by drum thickening before transfer to the THP buffer tanks, where it is combined with imported sludge from other sewage works. The combined sludge is then transferred to four strategic sludge storage tanks (each with volumetric capacities of 10,000m3).
B5: Number of tanks | C5: 1 (Risk assessed for one tank only)
B6: Volume of tank | C6: 10500 m3 (approximately) - total volume for tank Assumed full volume above ground due to lack of available drawings.
B7: Material of tank | C7: Concrete
B8: Above/below ground? | C8: Above ground
B9: Pipe material | C9: All connecting pipework is thick-walled – some above ground and some below ground.
B10: Drainage for zone | C10: The drainage is directed towards the Eastern direction [As per drawing 100105164_MSD_DrainagePlan_HOW]
B11: Year of construction | C11: -
B12: Surrounding area | C12: Immediate surrounding external area is permeable ground, then hard standing.
B14: Pump rate - to Strategic Sludge Storage Tank 2 | C14: -
B15: Pump rate - from Strategic Sludge Storage Tank 2 | C15: -
B18: Is asset fit for purpose? | C18: The tanks were originally designed and constructed to hold sludge and has been operating with no notable concerns. Tank has not undergone a change of use
B19: Condition of the tank Any tank failures - cracks, flaking, corrosion, overflows, overfilling? | C19: no structural concern visible in photos
B20: Condition of pipework Pipe leaks, corrosion? | C20: No visible issues/leaks reported by operational staff
B21: Protection of assets | C21: No vehicle impact protection - Vehicle barriers or bollards are proposed around front of the tanks along the road. Potential for the fence installed to be stronger and to be able to withstand some vehicular impact.
B22: Control/monitoring/alarming measures in place? | C22: It is assumed that all tanks undergo a delegated inspection regime and the process parameters are monitored and understood by site operatives
B23: Secondary containment provided? | C23: None
B24: Secondary containment condition? | C24: N/A

Sheet 5.Containment type-Total vol.
A3: 5.1 | B3: Containment to be provided
B5: Based on a High site risk rating for the zone, Class 3 containment is required. Bunds, as shown below, or concrete walls will be used
A19: 5.2 | B19: Catastrophic failure
B21: Catastrophic failure assumes the tank loses all its above ground volume and that the total volume would need to be contained.
W24: Typical reinforced concrete wall section view
B25: Material type of containment to be provided
B27: Type | F27: Applicability
B28: Reinforced concrete/masonry flooring and bund | F28: Due to relatively large volume from loss of containment, use of a masonry/concrete bund is generally not appropriate for local containment. Because local containment necessitates a deeper bund or a long concrete wall, difficulties arise. The containment's high wall height poses a health and safety danger of a potential fall and being trapped if the tank breaks while someone is within the enclosure. Furthermore, because concrete is vulnerable to heat shrinkage and expansion, which can cause cracks, concrete/masonry bunds require constant inspection and maintenance to ensure their impermeability. Sheet pile walls are preferred to achieve complete impermeability of the containment, if space for bunded areas is not available.
B29: Earth banked basins, bunds and flooring | F29: Soil within site is of permeable nature - Clay or impermeable soil type not plentiful Potential for stabilised soil (lime and cement used to make it impermeable) for bund construction. Area of which bunding can be provided is however limited - assuming for example a bund height of 300mm, crest width of 100m, side slopes of 1:3 - a base width of the bund of at least 2,000mm is required. Dependant on area required and nature of surrounding area, might be applicable Not applicable within the import sludge tank area.
B30: Containment tank | F30: There is a disused tank with a volume of approximately 660m3 to the east of the digestors. Flow could be channelled towards these disused tanks (which are in a state of disrepair).
A33: 5.3 | B33: Catastrophic failure in existing situation (Do Nothing) - Visualisation
M39: Visualisation as a video file
L40: File Name | M40: Base.mp4 (No Rainfall)
M41: Base Rainfall.mp4 (Rainfall included )
A66: 5.4 | B66: Type of containment to be provided
N68: At this outline stage of design, the options have mainly considered 'Local' systems with passive containment assets including walls or bunds, depending on available space. Some options have included flood gates, where unavoidable, due to: the large volume of containment required; the topography of the site; or other local constraints such as proximity to sensitive receptors. In these cases, it is proposed the flood gate be locally or remotely automated. The need for flood gates can be reassessed at the next stage of design by design optimisation and a pragmatic estimation of the spill risk/volume. Similarly, penstock valves are proposed as part of the options but these can be either automated or manually operated following a pragmatic appraisal of the risk of sludge getting out of the site through the surface water drainage network.
B69: Option 1: Site Containment
B71: Volume is proposed to be contained within the site. Where currently permeable (stone and grass), to be made impermeable with either converting this to a concrete surface or via lining. Mobile pumps to be used to remove volume from bund from the low point. Daily operational inspection to ensure any rainfall runoff within the bund is removed. Volume is proposed to be contained within the site and will be constructed within the treatment works site boundary.Sheet piled walls to be constructed ranging up to 2.6 m. This would limit flow throughout the entire site and contain it to the site boundary. The area to the north of the sheet piled wall and the road running through the middle of the site would be proposed to store the sludge. The approximate area of this area for storage is 27,860m2, which with a wall 2.4m high at its lowest point gives a storage volume of 66,864m3. Please note that the Howden site is already lined due to contaminent risk and therefore additional lining is not required as part of this option. This option protects the entire site from failure into the nearby watercourses from all the tanks listed in the permit. This sheet piled wall will be reviewed and the height refined as part of the detailed design process.
R85: Advantages Contains sludge within the site. Possible failure in another tank will be contained likely to be contained with the proposed solution. Disadvantages Walls are high and a gate is required limiting access
T111: Visualisation as a video file
S112: File Name | T112: Option.mp4 (No Rainfall)
T113: Option Rainfall.mp4 (Rainfall included )
O123: Flood Gate location
C142: As part of the assessment, sensitivity testing has been carried out to ensure that the proposed option contains the flows within the site not just for the tank being assessed but also the other tanks under the permit within the site. As a result of this, the wall was extended on the eastern side of the site. | O142: (left) Potential gate location accessed by a ring road around site. If the gate is a permanent point of access to the site the current gate structure will ned replaced with an impervious flood gate.
A172: 5.4 | B172: Preferred Option
B174: The proposed option is the sludge to be contained within the site itself. It is the only applicable solution due to the fact that an enormous volume of sludge is to be contained over 10.000 m3. The volume is proposed to be contained within the site boundaries with additional penstocks to block the flow. Mobile pumps to be used to remove volume from bund from low point. Daily operational inspection to ensure any rainfall runoff within the bund is removed and that the penstocks are operational. This option will be constructed by competent personnel and will be reviewed and refined in the detailed design stage. This is anticipated to be constructed by the end of 2024, as per the regulation date and funding.

Sheet 6.Pragmatic volume - Mitigation (hidden)
A3: 6.1 | B3: Catastrophic failure - modes (loss of containment) - pragmatic solution
B5: Risk | C5: Cause | D5: Existing consequence and mitigation measure | K5: Existing zone risk rating | L5: Proposed Mitigation | V5: Risk rating after mitigation
C6: Operational failure - tank (partial) | D6: ='1.Risk assessment'!$D$81 -> Strategic tanks are covered so it is not anticipated that overfilling/overflow of tanks will occur. | K6: ='1.Risk assessment'!$L$81 -> L | L6: ='2.Total vol. - Mitigation'!$L$6 -> All tanks undergo a delegated inspection regime and the process parameters are monitored and understood by site operatives. Daily site inspection regime will consist of the a site walkover. Any defects located will be escalated to site manager for a repair resolution to be determined. If there is not an immediate risk posed by the defective asset and large scale repair is required then, the asset planning team will be informed in order to plan the necessary repairs. Any reactive works required will be undertaken by Site Operations team. Inspection/Frequency >Walk round the site, identify and clear up any waste materials: Daily >Note signs of any deterioration of tanks or surroundings: Daily >Note any small leaks or spills, fix them and clean them up immediately: Daily >Integrity/Condition assessment all key sludge assets - Drain tank and inspect condition: 10 yearly Further mitigation >A proactive planned preventative maintenance (PPM) and replacement programme linked to asset lifespan. Site Manager ensures the PPM is implemented effectively to minimise the probability of equipment malfunction. >A robust leak detection and repair plan will be set out and enacted >The site will be monitored using a telemetry to monitor tank levels and process flows. Trigger levels will be assigned to risk rating and proportional response will be taken. Alarms that protect against a loss of containment will have a response time the same as for other emergencies (Approx. 1 hr). >Penstock valves will be placed at strategic SW chambers to reduce the risk of sludge flows getting in to the SW drainage system. An automated solution for closing them and also any need for regrading of surfaces to reduce risk will be looked into at detailed design. Control of substances hazardous to health (COSHH) assessment undertaken for all raw materials. | V6: L
C7: Structural failure - tank (catastrophic) | D7: ='1.Risk assessment'!$D$82 -> Tanks are primarily located above ground with a proportion below ground. For any loss of containment below ground, the sludge liquid will percolate into the permeable soil at a slow rate over a long period. In the case of significant damage above ground, the total volume contained above ground could be lost. It is however very unlikely for the tanks to fail catastrophically structurally as the tanks are fit for purpose. Total loss of containment could occur in case of pipe failure above the ground level - If total loss of containment occurs, sludge would flow freely. If pipework fails, jetting likely to occur. This sludge would be able to flow in all directions as there is no containment immediately around the tank. The sludge would predominantly flow to the south towards the Tyne river. There are bunds on the southern and eastern boundaries of the site which would limit the flow and inhibit any sludge from escaping the site and into the nearby watercourse. Yet these bunds do not contain the sludge completely as the estimated volume is exceeds 10.000 m3. | K7: ='1.Risk assessment'!$L$82 -> L | L7: ='2.Total vol. - Mitigation'!$L$7 -> The above inspection and further mitigation proposals will be applicable to structural failure, also. Both clean and contaminated surface water is directed to a pumping station which recirculates it back into the system. The stormwater drainage of potentially contaminated areas from within the Site boundary is routed into the head of the works with no discharge outside of the site boundary. Regular daily inspections of the site drainage systems and other equipment are to be undertaken, with any repairs and maintenance carried out if necessary. All complaints and other incidents are recorded in the site diary including actions taken. The condensate is clean, uncontaminated water and is small in quantity. Condensate traps are checked regularly and condensate is discharged to the head of the works. | V7: L
C8: Structural failure - tank (partial) | D8: ='1.Risk assessment'!$D$83 -> Tanks are primarily located above ground. Any significant loss of containment, would spill above ground. Structural failure of the tank would mainly be through cracks. In the case of significant cracks forming above ground, the volume contained above ground would seep through the cracks . If the cracks are significant (>6mm), the tank could potentially lose the above ground volume over a long period of time (very unlikely). Due to operational presence on site, large drops in levels in the tanks and significant leaks above ground would be noticed. Significant cracks (>6mm) below/above ground would also be easily spotted if tank is inspected. Proportion of volume could be lost, but from discussions with operations, no loss of containment was experienced. Total loss of containment is unlikely (partial loss of containment would be more likely to occur) | K8: ='1.Risk assessment'!$L$83 -> M | L8: ='2.Total vol. - Mitigation'!$L$8 -> Original tank construction was reinforced concrete. In the event that tank loses containment above or below ground through structural failure (cracks), sludge would weep through the cracks at a very slow rate. The volume would slowly flow down the side of the tank and gather around the tank. Very large cracks and the subsequent leaks (especially above ground) would be spotted by operations during their daily inspections and the tank would be isolated and drained down until repaired if the crack is significant. To minimise loss of containment underground, it is advised that the tanks be structurally inspected on daily basis. Falling head tests should also be carried out to limit any potential leaks underground on weekly basis. Tank to be refurbished if necessary. Ultrasonic meters are suggested in Digestion tank which should alarm when pumps (feed pumps) are not in operation, but the level in the tank drops a certain distance to ensure any significant loss of containment underground is monitored. In the unlikely event that tank loses significant containment above ground through structural failure (large cracks), based on topography, sludge will cascade towards the road to the north/west and eventually into the drainage system. Potential to infiltrate into the ground around tank (grass) or cascade into the drainage network (liquor return) is minimal. Permeable areas around the tanks (stone and grass) and low lying grassed area are also to be replaced with impermeable hardstanding to remove the pathway to the ground. Soakaways to be filled in (concrete) and all connected drainage to connect to liquor return. | V8: L
C9: Structural failure - pipework (catastrophic) | D9: ='1.Risk assessment'!$D$84 -> In the unlikely event where the above ground pipework fails and breaks off, a significant volume could be lost if the necessary pump controls are not in place or the valves are not closed by operational staff to limit loss of containment. If an incident occurred during manned hours, the pipes would be shut down immediately and valves closed by operational staff if the pipes were to fail. In the case where critical pipework fails and valves cannot mitigate the spillage, the digester could lose its full volume. Total loss of containment could occur. - If total loss of containment occurs sludge will flow freely, it is able to flow in all directions as there is no containment immediately around the tank.he sludge would predominantly flow to the south towards the Tyne river. There are bunds on the southern and eastern boundaries of the site which would limit the flow and inhibit any sludge from escaping the site and into the nearby watercourse. Yet these bunds are quite insignificant in height and do not contain the sludge completely as the estimated volume is exceeds 10.000 m3. The sludge will mainly flow to the south leading down to river Tyne located directly below the tank towards an outfall in the river, which has a penstock attached however it is not in full use so the outfall would allow sludge off site. | K9: ='1.Risk assessment'!$L$84 -> L | L9: ='2.Total vol. - Mitigation'!$L$9 -> If catastrophic failure of the above ground pipework occurs (i.e. rising main pipe failure), assuming the pumps have the necessary pressure controls (Low and high pressure switches to trip the pump), the volume contained in the pipe length should be contained within pipe and valve chamber. To mitigate the very unlikely occurrence where the above ground pipework could fail/collapse, the necessary pump controls (Low and high pressure switches to trip the pump) need to be put in place, if not already, if there is a sudden loss of pressure in the rising mains (feed, mixing, hot water pumps rising mains), the pumps should stop. All above ground pipework and chambers to be inspected structurally on a daily basis for any leaks and necessary falling head tests conducted on weekly basis. Pipework and chambers to be refurbished or replaced, if necessary to BAT standards. In the unlikely event that tank loses significant containment above ground through structural failure (large cracks), based on topography, sludge will cascade towards the road to the north/west and eventually into the drainage system. Potential to infiltrate into the ground around tank (grass) or cascade into the drainage network (liquor return) is minimal. Permeable areas around the tank (stone and grass) and low lying grassed areas is also to be replaced with impermeable hardstanding to remove the pathway to the ground. Soakaways to be filled in (concrete) and all connected drainage to connect to liquor return. | V9: L
C10: Structural failure - pipework (partial) | D10: ='1.Risk assessment'!$D$85 -> It is assumed that the majority of pipework and connections are located above ground. If loss of containment occurs underground (through leaks, joints and seals), sludge will percolate into the soil at a slow rate over a long period. If significant leaks, localised wet areas will be present above ground and jetting is likely to occur. If loss of containment occurs above ground through leaks or damage to pipework, due to the permeable ground around tank, sludge will also percolate into the soil at a slow rate over a long period. Due to operational presence on site, significant leaks (above or below) ground would be noticed and loss of containment would be mitigated through operational measures (closing of valves). The site is manned and valves present on all pipework from all tanks would be able to be closed, minimising the risk of significant jetting. Total loss of containment is unlikely (partial loss of containment would be more likely to occur) | K10: ='1.Risk assessment'!$L$85 -> M | L10: ='2.Total vol. - Mitigation'!$L$10 -> No known visible leaks in the tank area. As construction was fit for purpose at the time of construction, secondary containment provision is not considered for the underground pipework. To assess the condition of underground pipework and chambers, CCTV and the necessary leakage detection (falling head tests) should be done on weekly basis to check if any leakage is experienced. All above ground pipework and chambers to be inspected structurally on daily basis for any leaks and necessary falling head tests conducted on weekly basis. Pipework and chambers to be refurbished or replaced, if necessary to BAT standards. In the unlikely event that tank loses significant containment above ground through structural failure (large cracks), based on topography, sludge will cascade towards the road to the north/west and eventually into the drainage system. Potential to infiltrate into the ground around tank (grass) or cascade into the drainage network (liquor return) is minimal. Permeable areas around the tanks (stone and grass) and low lying grassed areas is also to be replaced with impermeable hardstanding to remove the pathway to the ground. Soakaways to be filled in (concrete) and all connected drainage to connect to liquor return. | V10: L
C11: Vehicular impact (partial to catastrophic) | D11: ='1.Risk assessment'!$D$86 -> No known vehicle impacts - some vehicle barriers/protection can be seen on site photos. Vehicles could potentially impact and damage concrete digestion tank which is located above ground. Vehicular impact could cause some damage to the tank (cracking), if significant, proportion of above ground volume could be lost. Vehicle is however unlikely to damage underground sections of tanks or displace any liquid within them. Total loss of containment could occur if the vehicle impact causes significant damage to the tank. High speed impact unlikely, but vehicle could damage pipework connected to tank (mixer pump) and cause a significant hole in the tank at low level. Could impact a potential weak point. | K11: ='1.Risk assessment'!$L$86 -> M | L11: ='2.Total vol. - Mitigation'!$L$11 -> Vehicle barriers or bollards are proposed around front of the tanks along the road. Potential for the fence installed to be stronger and to be able to withstand some vehicular impact. The likelihood of such occurrence in low. This is to mitigate any potential impacts from vehicles and potential damage which could lead to loss of containment. Since, The tank base is at road level there are chances of a vehicular collisions. Permeable areas around the tanks (stone and grass) and low lying grassed areas is also to be replaced with impermeable hardstanding to remove the pathway to the ground. Soakaways to be filled in (concrete) and all connected drainage to connect to liquor return. | V11: L
C12: Vandalism | D12: ='1.Risk assessment'!$D$87 -> No known vandalism to tanks or pipework - CCTV cameras on site. Site is enclosed by steel fencing all around. If vandalism damage were to occur, total loss of containment is unlikely, but could occur if significant damage or on theft of mixer pumps and pipework. Partial loss of containment would be more likely to occur if slight damage was done. | K12: ='1.Risk assessment'!$L$87 -> L | L12: ='2.Total vol. - Mitigation'!$L$12 -> Access to Site and waste is restricted by a chain link security fence. The Site also benefits from a CCTV systems. Regular inspections of the boundary fencing and buildings are undertaken to ensure that these have not been compromised and continue to prevent easy access to Site. | V12: L
C13: Flooding | D13: ='1.Risk assessment'!$D$88 -> The site is located in an Environment Agency zone 1 flood risk area. Areas withinzone 1 have 1 in a 1,000 chance of river or sea related flooding. However, the area approximately 50m to the east and 80m to the south of the site is located within a zone 3 flooding risk area due to the proximity of the River Tyne. Areas within flood zone 3 have been shown to be at a 1% or greater probability offlooding from rivers or 0.5% or greater probability of flooding from rivers/ the sea. [As per Site Condition Report 100105164_MSD_SCR_HOW, Flooding, Page 3] | K13: ='1.Risk assessment'!$L$88 -> M | L13: ='2.Total vol. - Mitigation'!$L$13 -> Ensure flood plan for site follows EA guidance. Include provision of sump pump to keep site clear of floodwater. Ensure diesel generators are at sufficient height to ensure they are not at risk of flooding (coastal or otherwise) | V13: L
B16: Implimenting the above measures will significantly reduce the probability and risk of failure from the concrete tanks and significantly reduce the amount of secondary containment. As per CIRIA 736, the above will need to be implimented in conjunction with a good maintenance strategy

Sheet 7.Containment - Pragmatic (hidden)
A3: 7.1 | B3: Secondary containment volume requirement - Inventory volume (above ground)
B5: The most probable failure of the tank, based on experience, is assumed to be through leakage or discharge from pipe connections into the tank (mixer pump pipework) and cracks in the tank, causing it to lose a proportion of its total volume and in worst case scenario all its above ground volume. Due to the very unlikely event of catastrophic failure of the tank, causing total loss of containment, the secondary containment volume was based on the worst case between the foaming volume (most likely) and the loss from the digester through significant leaks and cracks (1500mm of digester height).
A13: 7.2 | B13: Above ground volume - containment to be provided
B15: Catastrophic failure | C15: ='3.Containment volume-Total vol.'!C7 -> 10500 | D15: m3
B17: Foaming volume | C17: =1.1*105 -> 115.5 | D17: m3
B18: 1000mm height loss of tank | C18: =1*(PI()*(15/2)^2) -> 176.7145868 | D18: m3
B19: 1500mm height loss of tank | C19: =1.5*(PI()*(15/2)^2) -> 265.0718801 | D19: m3
B20: 15% of digester | C20: =1420*0.15 -> 213 | D20: m3
B22: Pragmatic volume | C22: =MAX(C17:C20) -> 265.0718801 | D22: m3
A24: 7.3 | B24: Estimate of area required - local containment (proportion of volume)
B27: Volume loss | C27: Height of containment (mm) | D27: Area based on flat ground (m2)
B28: =$C$22*1.1 -> 291.5790682 | C28: 100 | D28: =B28/(C28/1000) -> 2915.790682
B29: =$C$22*1.1 -> 291.5790682 | C29: 200 | D29: 1457.895341
B30: 291.5790682 | C30: 300 | D30: 971.9302272
B31: 291.5790682 | C31: 400 | D31: 728.9476704
B32: 291.5790682 | C32: 500 | D32: 583.1581363
B33: 291.5790682 | C33: 600 | D33: 485.9651136
B34: 291.5790682 | C34: 700 | D34: 416.5415259
B35: 291.5790682 | C35: 800 | D35: 364.4738352
B36: 291.5790682 | C36: 900 | D36: 323.9767424
B37: 291.5790682 | C37: 1000 | D37: 291.5790682
B38: 291.5790682 | C38: 1100 | D38: 265.0718801
B39: 291.5790682 | C39: 1200 | D39: 242.9825568
B40: 291.5790682 | C40: 1300 | D40: 224.2915909
B41: 291.5790682 | C41: 1400 | D41: 208.270763
B42: 291.5790682 | C42: 1500 | D42: 194.3860454
B43: 291.5790682 | C43: 1600 | D43: 182.2369176
B44: 291.5790682 | C44: 1700 | D44: 171.5170989
B45: 291.5790682 | C45: 1800 | D45: 161.9883712
B46: 291.5790682 | C46: 1900 | D46: 153.4626675
B47: 291.5790682 | C47: 2000 | D47: 145.7895341

Sheet Template Settings (hidden)
B3: Ribbon ID | C3: 523747064 | D3: Ribbon Visible | E3: TRUE | F3: These cells are used by the template and should not be altered
B4: Template Owner | C4: adam.grove@mottmac.com
B5: Template Version History
B6: Version | C6: Description | F6: Person | G6: Date
B7: A | C7: Intital Template | F7: Adam Grove | G7: 2013-08-30
B8: B | C8: Bug fixes | F8: Adam Grove | G8: 2013-11-04
B9: C | C9: Common Graph format added | F9: Adam Grove | G9: 2013-12-20
B10: D | C10: Spell chekcking! | F10: Adam Grove | G10: 2014-04-07
B18: Divisions | C18: List any additional divisions to be included here | F18: Chart Series Colours
B19: WCD/WAM | G19: Red | H19: Green | I19: Blue
B20: WCD/NWC | F20: 1 | G20: 41 | H20: 136 | I20: 201
B21: WCD/CWC | F21: 2 | G21: 237 | H21: 40 | I21: 145
B22: WCD/SWC | F22: 3 | G22: 63 | H22: 182 | I22: 91
B23: MMB/NMB | F23: 4 | G23: 255 | H23: 212 | I23: 28
B24: MMB/CMB | F24: 5 | G24: 239 | H24: 56 | I24: 50
B25: MMB/SMB | F25: 6 | G25: 39 | H25: 189 | I25: 190
B26: EVT/EMP | F26: 7 | G26: 128 | H26: 53 | I26: 148
F27: 8 | G27: 242 | H27: 101 | I27: 41
F28: 9 | G28: 39 | H28: 111 | I28: 154
F29: 10 | G29: 251 | H29: 172 | I29: 38
F30: 11 | G30: 160 | H30: 191 | I30: 61
F31: 12 | G31: 0 | H31: 158 | I31: 154
B40: MM Logos
B41: Name | C41: Picture Name | D41: Logo
B42: MM | C42: LogoMM | E42: Logo should be of width <=3cm, height <=1.4cm Rename the logo picture with the name in the Picture Name column (no spaces)
B43: MMB | C43: LogoMMB | E43: Logos can be added to the sheets using the 'Other Settings' button in the ribbon
B44: GBM | C44: LogoGBM

Sheet Settings (hidden)
B2: Please use this page for any settings including lists used in dropdown (validation) cells
B4: Lists
B6: List1
